[Event "Titled Tuesday Blitz May 24 Early 2022"]
[White "Maksimovic, Bojan"]
[Black "Toncheva, Nadya"]
[WhiteFideId "14408120"]
[BlackFideId "2924056"]
[WhiteElo "2448"]
[BlackElo "1888"]
[Result "1-0"]
[Round "01"]
[TimeControl "180+1"]
[Date "2022.05.25"]
[WhiteClock "0:00:09"]
[BlackClock "0:00:03"]

1. d4 {[%clk 0:02:57]}  d5 {[%clk 0:02:58]} 2. c4 {[%clk 0:02:54]}  c6 {[%clk 0:02:55]} 3. Nf3 {[%clk 0:02:53]}  Nf6 {[%clk 0:02:54]} 4. e3 {[%clk 0:02:54]}  e6 {[%clk 0:02:51]} 5. Nc3 {[%clk 0:02:50]}  Nbd7 {[%clk 0:02:50]} 6. Qc2 {[%clk 0:02:50]}  Bd6 {[%clk 0:02:47]} 7. b3 {[%clk 0:02:50]}  O-O {[%clk 0:02:41]} 8. Be2 {[%clk 0:02:50]}  Qe7 {[%clk 0:02:34]} 9. O-O {[%clk 0:02:48]}  e5 {[%clk 0:02:23]} 10. dxe5 {[%clk 0:02:46]}  Nxe5 {[%clk 0:02:21]} 11. cxd5 {[%clk 0:02:47]}  cxd5 {[%clk 0:02:16]} 12. Bb2 {[%clk 0:02:41]}  a6 {[%clk 0:02:12]} 13. Rad1 {[%clk 0:02:36]}  Be6 {[%clk 0:02:07]} 14. Nd4 {[%clk 0:02:20]}  Rac8 {[%clk 0:01:59]} 15. Nf5 {[%clk 0:02:14]}  Bxf5 {[%clk 0:01:57]} 16. Qxf5 {[%clk 0:02:14]}  Qe6 {[%clk 0:01:54]} 17. Qxe6 {[%clk 0:01:50]}  fxe6 {[%clk 0:01:55]} 18. e4 {[%clk 0:01:42]}  Neg4 {[%clk 0:01:34]} 19. exd5 {[%clk 0:01:06]}  Bxh2+ {[%clk 0:01:23]} 20. Kh1 {[%clk 0:01:06]}  Be5 {[%clk 0:01:23]} 21. Rd3 {[%clk 0:00:32]}  exd5 {[%clk 0:01:14]} 22. Bf3 {[%clk 0:00:20]}  Rfd8 {[%clk 0:00:28]} 23. Ba1 {[%clk 0:00:13]}  d4 {[%clk 0:00:24]} 24. Ne2 {[%clk 0:00:08]}  Rc2 {[%clk 0:00:23]} 25. Kg1 {[%clk 0:00:02]}  Nh2 {[%clk 0:00:20]} 26. Rfd1 {[%clk 0:00:01]}  Nxf3+ {[%clk 0:00:14]} 27. gxf3 {[%clk 0:00:02]}  Rxe2 {[%clk 0:00:12]} 28. a4 {[%clk 0:00:02]}  Ra2 {[%clk 0:00:08]} 29. f4 {[%clk 0:00:02]}  Bc7 {[%clk 0:00:07]} 30. Bxd4 {[%clk 0:00:02]}  Bb6 {[%clk 0:00:06]} 31. Bxf6 {[%clk 0:00:02]}  Rxd3 {[%clk 0:00:06]} 32. Rxd3 {[%clk 0:00:02]}  gxf6 {[%clk 0:00:07]} 33. Rd7 {[%clk 0:00:03]}  Rb2 {[%clk 0:00:05]} 34. Rxb7 {[%clk 0:00:03]}  Bd4 {[%clk 0:00:05]} 35. Kf1 {[%clk 0:00:02]}  Rxf2+ {[%clk 0:00:03]} 36. Ke1 {[%clk 0:00:02]}  Rxf4 {[%clk 0:00:04]} 37. Ke2 {[%clk 0:00:03]}  Rf3 {[%clk 0:00:04]} 38. Kxf3 {[%clk 0:00:03]}  Be5 {[%clk 0:00:04]} 39. Ke4 {[%clk 0:00:03]}  h5 {[%clk 0:00:05]} 40. Kf5 {[%clk 0:00:04]}  h4 {[%clk 0:00:06]} 41. Kg4 {[%clk 0:00:04]}  Kf8 {[%clk 0:00:05]} 42. b4 {[%clk 0:00:04]}  Ke8 {[%clk 0:00:06]} 43. Kxh4 {[%clk 0:00:05]}  Kd8 {[%clk 0:00:06]} 44. Kg4 {[%clk 0:00:05]}  Kc8 {[%clk 0:00:07]} 45. Rb6 {[%clk 0:00:06]}  Bd4 {[%clk 0:00:04]} 46. Rxa6 {[%clk 0:00:06]}  Be5 {[%clk 0:00:04]} 47. b5 {[%clk 0:00:07]}  Kb7 {[%clk 0:00:04]} 48. Kf5 {[%clk 0:00:07]}  Bd4 {[%clk 0:00:03]} 49. Rxf6 {[%clk 0:00:08]}  Bxf6 {[%clk 0:00:03]} 50. Kxf6 {[%clk 0:00:09]} 1-0


[Site "https://www.chess.com"]

[Event "Titled Tuesday Blitz May 24 Early 2022"]
[White "Martin Carmona, Gaston Manuel"]
[Black "Samadov, Read"]
[WhiteFideId "22284567"]
[BlackFideId "13417444"]
[WhiteElo "2162"]
[BlackElo "2084"]
[Result "0-1"]
[Round "01"]
[TimeControl "180+1"]
[Date "2022.05.25"]
[WhiteClock "0:01:39"]
[BlackClock "0:01:01"]

1. d4 {[%clk 0:03:00]}  Nf6 {[%clk 0:02:58]} 2. c4 {[%clk 0:03:00]}  e6 {[%clk 0:02:59]} 3. Nc3 {[%clk 0:03:00]}  Bb4 {[%clk 0:02:58]} 4. Qc2 {[%clk 0:03:00]}  d5 {[%clk 0:02:57]} 5. cxd5 {[%clk 0:03:00]}  exd5 {[%clk 0:02:57]} 6. Bg5 {[%clk 0:02:59]}  h6 {[%clk 0:02:57]} 7. Bh4 {[%clk 0:02:59]}  O-O {[%clk 0:02:57]} 8. e3 {[%clk 0:02:59]}  Be6 {[%clk 0:02:56]} 9. Bd3 {[%clk 0:02:59]}  c5 {[%clk 0:02:56]} 10. dxc5 {[%clk 0:02:55]}  Nbd7 {[%clk 0:02:56]} 11. a3 {[%clk 0:02:54]}  Bxc5 {[%clk 0:02:54]} 12. Nge2 {[%clk 0:02:51]}  Rc8 {[%clk 0:02:52]} 13. O-O {[%clk 0:02:50]}  Be7 {[%clk 0:02:49]} 14. Nd4 {[%clk 0:02:48]}  a6 {[%clk 0:02:45]} 15. Nxe6 {[%clk 0:02:42]}  fxe6 {[%clk 0:02:44]} 16. Rad1 {[%clk 0:02:43]}  Ng4 {[%clk 0:02:30]} 17. Bg3 {[%clk 0:02:35]}  Bh4 {[%clk 0:02:24]} 18. Qb3 {[%clk 0:02:26]}  Bxg3 {[%clk 0:02:22]} 19. hxg3 {[%clk 0:02:27]}  Nc5 {[%clk 0:02:21]} 20. Qb4 {[%clk 0:02:15]}  Qg5 {[%clk 0:02:17]} 21. Be2 {[%clk 0:02:12]}  Nf6 {[%clk 0:01:40]} 22. Bf3 {[%clk 0:02:12]}  Kh8 {[%clk 0:01:32]} 23. Qd4 {[%clk 0:01:57]}  e5 {[%clk 0:01:21]} 24. Qh4 {[%clk 0:01:57]}  Qxh4 {[%clk 0:01:14]} 25. gxh4 {[%clk 0:01:57]}  e4 {[%clk 0:01:14]} 26. Be2 {[%clk 0:01:56]}  Rfd8 {[%clk 0:01:14]} 27. Rd4 {[%clk 0:01:51]}  Ne6 {[%clk 0:01:11]} 28. Rb4 {[%clk 0:01:49]}  d4 {[%clk 0:01:09]} 29. exd4 {[%clk 0:01:47]}  Nxd4 {[%clk 0:01:09]} 30. Rxb7 {[%clk 0:01:47]}  Rxc3 {[%clk 0:01:08]} 31. bxc3 {[%clk 0:01:46]}  Nxe2+ {[%clk 0:01:08]} 32. Kh2 {[%clk 0:01:46]}  Nxc3 {[%clk 0:01:08]} 33. Rc1 {[%clk 0:01:45]}  Ne2 {[%clk 0:01:02]} 34. Rcc7 {[%clk 0:01:39]}  Ng4+ {[%clk 0:01:02]} 35. Kh1 {[%clk 0:01:39]}  Rd1# {[%clk 0:01:01]} 0-1


[Site "https://www.chess.com"]

[Event "Titled Tuesday Blitz May 24 Early 2022"]
[White "McCoy, Owen"]
[Black "Nogerbek, Kazybek"]
[WhiteFideId "30924502"]
[BlackFideId "13710427"]
[WhiteElo "2487"]
[BlackElo "2441"]
[Result "0-1"]
[Round "01"]
[TimeControl "180+1"]
[Date "2022.05.24"]
[WhiteClock "0:00:14"]
[BlackClock "0:01:11"]

1. e4 {[%clk 0:03:00]}  e5 {[%clk 0:02:58]} 2. Nf3 {[%clk 0:03:00]}  Nc6 {[%clk 0:02:59]} 3. Bc4 {[%clk 0:03:00]}  Nf6 {[%clk 0:02:56]} 4. Ng5 {[%clk 0:02:58]}  d5 {[%clk 0:02:55]} 5. exd5 {[%clk 0:02:58]}  Na5 {[%clk 0:02:55]} 6. Bb5+ {[%clk 0:02:58]}  c6 {[%clk 0:02:55]} 7. dxc6 {[%clk 0:02:59]}  bxc6 {[%clk 0:02:56]} 8. Bd3 {[%clk 0:02:59]}  Nd5 {[%clk 0:02:54]} 9. Nf3 {[%clk 0:02:58]}  Bd6 {[%clk 0:02:52]} 10. O-O {[%clk 0:02:55]}  O-O {[%clk 0:02:52]} 11. Re1 {[%clk 0:02:53]}  Re8 {[%clk 0:02:50]} 12. Nc3 {[%clk 0:02:14]}  f5 {[%clk 0:02:48]} 13. Bf1 {[%clk 0:01:50]}  e4 {[%clk 0:02:47]} 14. Nd4 {[%clk 0:01:50]}  Qf6 {[%clk 0:02:47]} 15. Nb3 {[%clk 0:01:42]}  Nxb3 {[%clk 0:02:47]} 16. axb3 {[%clk 0:01:42]}  Be6 {[%clk 0:02:37]} 17. Bc4 {[%clk 0:01:18]}  Rad8 {[%clk 0:02:28]} 18. Rxa7 {[%clk 0:01:15]}  Nxc3 {[%clk 0:02:03]} 19. Bxe6+ {[%clk 0:01:04]}  Rxe6 {[%clk 0:02:04]} 20. bxc3 {[%clk 0:01:04]}  f4 {[%clk 0:01:45]} 21. Qg4 {[%clk 0:00:52]}  Re5 {[%clk 0:01:34]} 22. Rd7 {[%clk 0:00:25]}  Rf8 {[%clk 0:01:30]} 23. c4 {[%clk 0:00:14]}  Rg5 {[%clk 0:01:27]} 24. Rxd6 {[%clk 0:00:12]}  Rxg4 {[%clk 0:01:25]} 25. Rxf6 {[%clk 0:00:12]}  Rxf6 {[%clk 0:01:26]} 26. Rxe4 {[%clk 0:00:13]}  Rg5 {[%clk 0:01:21]} 27. Bb2 {[%clk 0:00:12]}  Rf8 {[%clk 0:01:18]} 28. Bc3 {[%clk 0:00:12]}  f3 {[%clk 0:01:17]} 29. g3 {[%clk 0:00:11]}  Ra8 {[%clk 0:01:17]} 30. h4 {[%clk 0:00:11]}  Rf5 {[%clk 0:01:17]} 31. Re7 {[%clk 0:00:09]}  Rf7 {[%clk 0:01:18]} 32. Re6 {[%clk 0:00:09]}  Ra2 {[%clk 0:01:19]} 33. Rxc6 {[%clk 0:00:08]}  Rxc2 {[%clk 0:01:19]} 34. Rc8+ {[%clk 0:00:09]}  Rf8 {[%clk 0:01:19]} 35. Rc7 {[%clk 0:00:09]}  Rf7 {[%clk 0:01:17]} 36. Rc8+ {[%clk 0:00:10]}  Rf8 {[%clk 0:01:18]} 37. Rc7 {[%clk 0:00:10]}  Re8 {[%clk 0:01:19]} 38. Rxg7+ {[%clk 0:00:10]}  Kf8 {[%clk 0:01:19]} 39. Rxh7 {[%clk 0:00:10]}  Re2 {[%clk 0:01:18]} 40. Kh2 {[%clk 0:00:10]}  Rxf2+ {[%clk 0:01:18]} 41. Kh3 {[%clk 0:00:11]}  Re2 {[%clk 0:01:15]} 42. Rh6 {[%clk 0:00:11]}  Ke7 {[%clk 0:01:14]} 43. Rh7+ {[%clk 0:00:08]}  Ke6 {[%clk 0:01:14]} 44. Rh6+ {[%clk 0:00:09]}  Kd7 {[%clk 0:01:08]} 45. Rh7+ {[%clk 0:00:08]}  Re7 {[%clk 0:01:03]} 46. Rh6 {[%clk 0:00:06]}  Rf7 {[%clk 0:01:01]} 47. Rf6 {[%clk 0:00:02]}  Rxf6 {[%clk 0:01:01]} 48. Bxf6 {[%clk 0:00:03]}  Rxd2 {[%clk 0:01:02]} 49. Be5 {[%clk 0:00:01]}  Ke6 {[%clk 0:01:02]} 50. Bf4 {[%clk 0:00:01]}  Rb2 {[%clk 0:01:02]} 51. Be3 {[%clk 0:00:02]}  Rxb3 {[%clk 0:01:02]} 52. Bd4 {[%clk 0:00:02]}  Rb4 {[%clk 0:01:02]} 53. Bg1 {[%clk 0:00:02]}  Rxc4 {[%clk 0:01:02]} 54. g4 {[%clk 0:00:03]}  Rc2 {[%clk 0:01:01]} 55. Kg3 {[%clk 0:00:03]}  Rg2+ {[%clk 0:01:01]} 56. Kxf3 {[%clk 0:00:04]}  Rxg1 {[%clk 0:01:02]} 57. Kf4 {[%clk 0:00:04]}  Kf6 {[%clk 0:01:02]} 58. h5 {[%clk 0:00:05]}  Rf1+ {[%clk 0:01:02]} 59. Kg3 {[%clk 0:00:06]}  Kg5 {[%clk 0:01:03]} 60. Kh3 {[%clk 0:00:07]}  Rf4 {[%clk 0:01:04]} 61. Kh2 {[%clk 0:00:08]}  Rxg4 {[%clk 0:01:04]} 62. Kh1 {[%clk 0:00:08]}  Rh4+ {[%clk 0:01:05]} 63. Kg1 {[%clk 0:00:09]}  Rf4 {[%clk 0:01:05]} 64. Kh1 {[%clk 0:00:09]}  Rg4 {[%clk 0:01:05]} 65. Kh2 {[%clk 0:00:10]}  Kxh5 {[%clk 0:01:06]} 66. Kh1 {[%clk 0:00:10]}  Kg5 {[%clk 0:01:07]} 67. Kh2 {[%clk 0:00:11]}  Kf4 {[%clk 0:01:08]} 68. Kh1 {[%clk 0:00:12]}  Kf3 {[%clk 0:01:09]} 69. Kh2 {[%clk 0:00:13]}  Kf2 {[%clk 0:01:10]} 70. Kh3 {[%clk 0:00:14]}  Rf4 {[%clk 0:01:10]} 71. Kh2 {[%clk 0:00:14]}  Rh4# {[%clk 0:01:11]} 0-1


[Site "https://www.chess.com"]

[Event "Titled Tuesday Blitz May 24 Early 2022"]
[White "Mekhitarian, Krikor Sevag"]
[Black "Zorbos"]
[WhiteFideId "2107660"]
[WhiteElo "2598"]
[BlackElo "2504"]
[Result "1-0"]
[Round "01"]
[TimeControl "180+1"]
[Date "2022.05.24"]
[WhiteClock "0:00:37"]
[BlackClock "0:00:10"]

1. d4 {[%clk 0:02:59]}  Nf6 {[%clk 0:02:56]} 2. Nf3 {[%clk 0:02:54]}  e6 {[%clk 0:02:41]} 3. g3 {[%clk 0:02:54]}  d5 {[%clk 0:02:40]} 4. Bg2 {[%clk 0:02:54]}  Be7 {[%clk 0:02:40]} 5. O-O {[%clk 0:02:54]}  O-O {[%clk 0:02:41]} 6. b3 {[%clk 0:02:55]}  c5 {[%clk 0:02:41]} 7. dxc5 {[%clk 0:02:55]}  Bxc5 {[%clk 0:02:41]} 8. c4 {[%clk 0:02:56]}  Nc6 {[%clk 0:02:38]} 9. cxd5 {[%clk 0:02:53]}  Qxd5 {[%clk 0:02:38]} 10. Bb2 {[%clk 0:02:50]}  Rd8 {[%clk 0:02:28]} 11. Nc3 {[%clk 0:02:48]}  Qxd1 {[%clk 0:02:27]} 12. Rfxd1 {[%clk 0:02:49]}  Rxd1+ {[%clk 0:02:28]} 13. Rxd1 {[%clk 0:02:50]}  Kf8 {[%clk 0:02:24]} 14. Na4 {[%clk 0:02:23]}  Be7 {[%clk 0:02:20]} 15. Nd4 {[%clk 0:02:22]}  Nxd4 {[%clk 0:02:18]} 16. Bxd4 {[%clk 0:02:22]}  Nd5 {[%clk 0:01:59]} 17. Bxd5 {[%clk 0:01:53]}  exd5 {[%clk 0:01:59]} 18. Bc5 {[%clk 0:01:54]}  Be6 {[%clk 0:01:55]} 19. Bxe7+ {[%clk 0:01:49]}  Kxe7 {[%clk 0:01:56]} 20. Rd2 {[%clk 0:01:49]}  Rc8 {[%clk 0:01:55]} 21. f3 {[%clk 0:01:48]}  Kd6 {[%clk 0:01:53]} 22. Nb2 {[%clk 0:01:47]}  Kc5 {[%clk 0:01:26]} 23. Nd3+ {[%clk 0:01:07]}  Kd4 {[%clk 0:01:22]} 24. Kf2 {[%clk 0:01:07]}  a5 {[%clk 0:00:41]} 25. Ke1 {[%clk 0:01:05]}  a4 {[%clk 0:00:20]} 26. bxa4 {[%clk 0:01:01]}  Ra8 {[%clk 0:00:20]} 27. Kd1 {[%clk 0:00:54]}  Ke3 {[%clk 0:00:17]} 28. Ke1 {[%clk 0:00:48]}  Kd4 {[%clk 0:00:16]} 29. Kd1 {[%clk 0:00:37]}  Ke3 {[%clk 0:00:16]} 30. Rb2 {[%clk 0:00:38]}  Rxa4 {[%clk 0:00:12]} 31. Ke1 {[%clk 0:00:39]}  Kd4 {[%clk 0:00:11]} 32. Kd2 {[%clk 0:00:38]}  Ra7 {[%clk 0:00:10]} 33. Rb4# {[%clk 0:00:37]} 1-0


[Site "https://www.chess.com"]

[Event "Titled Tuesday Blitz May 24 Early 2022"]
[White "Melikhov, Evgeny V."]
[Black "Seemann, Jakub"]
[WhiteFideId "4122046"]
[BlackFideId "21874697"]
[WhiteElo "1931"]
[BlackElo "2003"]
[Result "1-0"]
[Round "01"]
[TimeControl "180+1"]
[Date "2022.05.25"]
[WhiteClock "0:00:10"]
[BlackClock "0:00:03"]

1. d4 {[%clk 0:02:59]}  d5 {[%clk 0:02:59]} 2. c4 {[%clk 0:02:58]}  c6 {[%clk 0:02:59]} 3. Nc3 {[%clk 0:02:58]}  Nf6 {[%clk 0:02:59]} 4. e3 {[%clk 0:02:58]}  e6 {[%clk 0:03:00]} 5. Nf3 {[%clk 0:02:58]}  Nbd7 {[%clk 0:03:00]} 6. Bd3 {[%clk 0:02:59]}  dxc4 {[%clk 0:02:59]} 7. Bxc4 {[%clk 0:02:59]}  Bd6 {[%clk 0:02:59]} 8. O-O {[%clk 0:02:57]}  O-O {[%clk 0:02:58]} 9. e4 {[%clk 0:02:57]}  e5 {[%clk 0:02:58]} 10. Bg5 {[%clk 0:02:57]}  Qc7 {[%clk 0:02:55]} 11. d5 {[%clk 0:01:57]}  h6 {[%clk 0:02:48]} 12. Bh4 {[%clk 0:01:51]}  cxd5 {[%clk 0:02:42]} 13. Bxd5 {[%clk 0:01:50]}  a6 {[%clk 0:02:38]} 14. Rc1 {[%clk 0:01:49]}  Qb8 {[%clk 0:02:36]} 15. Bb3 {[%clk 0:01:41]}  Nc5 {[%clk 0:02:30]} 16. Bxf6 {[%clk 0:01:33]}  gxf6 {[%clk 0:02:25]} 17. Bd5 {[%clk 0:01:26]}  Bg4 {[%clk 0:02:17]} 18. Qe2 {[%clk 0:01:23]}  Ne6 {[%clk 0:02:15]} 19. Qe3 {[%clk 0:01:16]}  Kg7 {[%clk 0:02:09]} 20. Nh4 {[%clk 0:01:14]}  Ng5 {[%clk 0:01:38]} 21. h3 {[%clk 0:01:10]}  Be6 {[%clk 0:01:36]} 22. Nf5+ {[%clk 0:01:02]}  Bxf5 {[%clk 0:01:36]} 23. exf5 {[%clk 0:01:03]}  e4 {[%clk 0:01:17]} 24. Rcd1 {[%clk 0:00:51]}  Bf4 {[%clk 0:01:17]} 25. Qd4 {[%clk 0:00:52]}  Qe5 {[%clk 0:01:13]} 26. h4 {[%clk 0:00:51]}  Nh7 {[%clk 0:00:40]} 27. Qxe5 {[%clk 0:00:49]}  Bxe5 {[%clk 0:00:40]} 28. Bxe4 {[%clk 0:00:49]}  Rfd8 {[%clk 0:00:36]} 29. g3 {[%clk 0:00:46]}  Nf8 {[%clk 0:00:36]} 30. Bxb7 {[%clk 0:00:44]}  Rab8 {[%clk 0:00:36]} 31. Rxd8 {[%clk 0:00:45]}  Rxd8 {[%clk 0:00:36]} 32. Bxa6 {[%clk 0:00:45]}  Rd2 {[%clk 0:00:36]} 33. Nd1 {[%clk 0:00:43]}  Nd7 {[%clk 0:00:34]} 34. b4 {[%clk 0:00:41]}  Bd4 {[%clk 0:00:31]} 35. a4 {[%clk 0:00:40]}  Ne5 {[%clk 0:00:31]} 36. Bb7 {[%clk 0:00:39]}  Nd3 {[%clk 0:00:21]} 37. b5 {[%clk 0:00:37]}  Ra2 {[%clk 0:00:21]} 38. Be4 {[%clk 0:00:33]}  Nc5 {[%clk 0:00:18]} 39. b6 {[%clk 0:00:31]}  Nxe4 {[%clk 0:00:16]} 40. b7 {[%clk 0:00:31]}  Ba7 {[%clk 0:00:16]} 41. Re1 {[%clk 0:00:31]}  Nxf2 {[%clk 0:00:09]} 42. Nxf2 {[%clk 0:00:30]}  Bxf2+ {[%clk 0:00:09]} 43. Kf1 {[%clk 0:00:30]}  Ba7 {[%clk 0:00:10]} 44. Re8 {[%clk 0:00:27]}  Rf2+ {[%clk 0:00:10]} 45. Ke1 {[%clk 0:00:27]}  Rb2 {[%clk 0:00:11]} 46. Ra8 {[%clk 0:00:27]}  Rxb7 {[%clk 0:00:10]} 47. Ke2 {[%clk 0:00:26]}  Re7+ {[%clk 0:00:10]} 48. Kf3 {[%clk 0:00:25]}  Bd4 {[%clk 0:00:11]} 49. Rd8 {[%clk 0:00:24]}  Be5 {[%clk 0:00:10]} 50. Rd3 {[%clk 0:00:22]}  Ra7 {[%clk 0:00:11]} 51. Ra3 {[%clk 0:00:22]}  Kf8 {[%clk 0:00:11]} 52. g4 {[%clk 0:00:21]}  Ke7 {[%clk 0:00:10]} 53. Ke4 {[%clk 0:00:22]}  Kd6 {[%clk 0:00:09]} 54. a5 {[%clk 0:00:22]}  Kc5 {[%clk 0:00:08]} 55. g5 {[%clk 0:00:22]}  hxg5 {[%clk 0:00:08]} 56. hxg5 {[%clk 0:00:22]}  Kb4 {[%clk 0:00:09]} 57. Ra2 {[%clk 0:00:20]}  Kb3 {[%clk 0:00:09]} 58. Rg2 {[%clk 0:00:18]}  Rxa5 {[%clk 0:00:08]} 59. g6 {[%clk 0:00:18]}  fxg6 {[%clk 0:00:08]} 60. fxg6 {[%clk 0:00:19]}  Bc3 {[%clk 0:00:05]} 61. g7 {[%clk 0:00:16]}  f5+ {[%clk 0:00:04]} 62. Kf4 {[%clk 0:00:16]}  Be5+ {[%clk 0:00:03]} 63. Kf3 {[%clk 0:00:13]}  Bxg7 {[%clk 0:00:03]} 64. Rxg7 {[%clk 0:00:13]}  Kc4 {[%clk 0:00:04]} 65. Rf7 {[%clk 0:00:13]}  Kd4 {[%clk 0:00:03]} 66. Kf4 {[%clk 0:00:13]}  Ra1 {[%clk 0:00:04]} 67. Rd7+ {[%clk 0:00:12]}  Kc5 {[%clk 0:00:03]} 68. Kxf5 {[%clk 0:00:13]}  Rf1+ {[%clk 0:00:03]} 69. Kg6 {[%clk 0:00:13]}  Kc6 {[%clk 0:00:03]} 70. Rf7 {[%clk 0:00:13]}  Rg1+ {[%clk 0:00:03]} 71. Kh7 {[%clk 0:00:12]}  Kd6 {[%clk 0:00:03]} 72. Rf6+ {[%clk 0:00:11]}  Ke7 {[%clk 0:00:02]} 73. Rg6 {[%clk 0:00:12]}  Rh1+ {[%clk 0:00:03]} 74. Rh6 {[%clk 0:00:11]}  Rf1 {[%clk 0:00:02]} 75. Rg6 {[%clk 0:00:11]}  Kf7 {[%clk 0:00:03]} 76. Rg7+ {[%clk 0:00:11]}  Kf6 {[%clk 0:00:03]} 77. Rg6+ {[%clk 0:00:11]}  Kf5 {[%clk 0:00:04]} 78. Rg7 {[%clk 0:00:11]}  Rh1+ {[%clk 0:00:03]} 79. Kg8 {[%clk 0:00:11]}  Ra1 {[%clk 0:00:04]} 80. Rf7+ {[%clk 0:00:11]}  Kg6 {[%clk 0:00:04]} 81. Rg7+ {[%clk 0:00:11]}  Kf6 {[%clk 0:00:05]} 82. Rf7+ {[%clk 0:00:12]}  Ke6 {[%clk 0:00:05]} 83. Rg7 {[%clk 0:00:12]}  Rh1 {[%clk 0:00:03]} 84. Kf8 {[%clk 0:00:10]}  Ra1 {[%clk 0:00:02]} 85. Rg6+ {[%clk 0:00:10]}  Kf5 {[%clk 0:00:02]} 86. Rb6 {[%clk 0:00:10]}  Ra8+ {[%clk 0:00:02]} 87. Ke7 {[%clk 0:00:10]}  Ra7+ {[%clk 0:00:03]} 88. Kf8 {[%clk 0:00:09]}  Ke5 {[%clk 0:00:02]} 89. Ke8 {[%clk 0:00:09]}  Kf5 {[%clk 0:00:01]} 90. Kf8 {[%clk 0:00:09]}  Ra3 {[%clk 0:00:02]} 91. Ke8 {[%clk 0:00:09]}  Ke5 {[%clk 0:00:02]} 92. Kf8 {[%clk 0:00:10]}  Kd5 {[%clk 0:00:03]} 93. Ke8 {[%clk 0:00:10]}  Ke5 {[%clk 0:00:03]} 94. Kf8 {[%clk 0:00:10]}  Ra7 {[%clk 0:00:04]} 95. Ke8 {[%clk 0:00:10]}  Kd5 {[%clk 0:00:04]} 96. Kf8 {[%clk 0:00:10]}  Kc5 {[%clk 0:00:05]} 97. Rh6 {[%clk 0:00:10]}  Kd5 {[%clk 0:00:04]} 98. Ke8 {[%clk 0:00:10]}  Ke5 {[%clk 0:00:04]} 99. Kf8 {[%clk 0:00:11]}  Ra5 {[%clk 0:00:04]} 100. Rh5+ {[%clk 0:00:10]}  Kf6 {[%clk 0:00:03]} 101. Rxa5 {[%clk 0:00:10]}  Ke6 {[%clk 0:00:03]} 102. Kg7 {[%clk 0:00:10]} 1-0


[Site "https://www.chess.com"]

[Event "Titled Tuesday Blitz May 24 Early 2022"]
[White "Mitrabha, Guha"]
[Black "Pham, Le Thao Nguyen"]
[WhiteFideId "5057000"]
[BlackFideId "12401226"]
[WhiteElo "2468"]
[BlackElo "2271"]
[Result "0-1"]
[Round "01"]
[TimeControl "180+1"]
[Date "2022.05.25"]
[WhiteClock "0:00:23"]
[BlackClock "0:00:15"]

1. Nf3 {[%clk 0:01:35]}  d5 {[%clk 0:02:55]} 2. g3 {[%clk 0:01:36]}  Bf5 {[%clk 0:02:53]} 3. Bg2 {[%clk 0:01:37]}  e6 {[%clk 0:02:53]} 4. O-O {[%clk 0:01:37]}  c6 {[%clk 0:02:50]} 5. b3 {[%clk 0:01:37]}  Nf6 {[%clk 0:02:46]} 6. Bb2 {[%clk 0:01:38]}  Be7 {[%clk 0:02:46]} 7. d3 {[%clk 0:01:39]}  O-O {[%clk 0:02:47]} 8. Nbd2 {[%clk 0:01:40]}  h6 {[%clk 0:02:48]} 9. c4 {[%clk 0:01:39]}  a5 {[%clk 0:02:48]} 10. a3 {[%clk 0:01:39]}  Na6 {[%clk 0:02:47]} 11. Qc2 {[%clk 0:01:38]}  Qb6 {[%clk 0:02:44]} 12. Rfb1 {[%clk 0:01:38]}  Bh7 {[%clk 0:02:43]} 13. Bc3 {[%clk 0:01:35]}  c5 {[%clk 0:02:35]} 14. e3 {[%clk 0:01:29]}  Rfd8 {[%clk 0:02:33]} 15. Bf1 {[%clk 0:01:29]}  Nb8 {[%clk 0:02:13]} 16. Ne5 {[%clk 0:01:28]}  Nc6 {[%clk 0:02:11]} 17. Nxc6 {[%clk 0:01:27]}  bxc6 {[%clk 0:02:07]} 18. Nf3 {[%clk 0:01:25]}  Nd7 {[%clk 0:02:00]} 19. Qd2 {[%clk 0:01:21]}  Bf6 {[%clk 0:01:47]} 20. Bxf6 {[%clk 0:01:19]}  Nxf6 {[%clk 0:01:48]} 21. Qc3 {[%clk 0:01:17]}  d4 {[%clk 0:01:47]} 22. exd4 {[%clk 0:01:12]}  cxd4 {[%clk 0:01:47]} 23. Qd2 {[%clk 0:01:13]}  c5 {[%clk 0:01:46]} 24. Bg2 {[%clk 0:01:07]}  Ra6 {[%clk 0:01:36]} 25. Ne1 {[%clk 0:01:07]}  Rb8 {[%clk 0:01:29]} 26. Nc2 {[%clk 0:01:07]}  Qd6 {[%clk 0:01:11]} 27. f4 {[%clk 0:01:02]}  Nd7 {[%clk 0:01:10]} 28. Ra2 {[%clk 0:00:52]}  e5 {[%clk 0:01:06]} 29. Rab2 {[%clk 0:00:51]}  exf4 {[%clk 0:00:54]} 30. gxf4 {[%clk 0:00:49]}  Bf5 {[%clk 0:00:50]} 31. b4 {[%clk 0:00:47]}  axb4 {[%clk 0:00:50]} 32. axb4 {[%clk 0:00:47]}  cxb4 {[%clk 0:00:41]} 33. Nxb4 {[%clk 0:00:43]}  Ra3 {[%clk 0:00:41]} 34. Bf1 {[%clk 0:00:38]}  Nc5 {[%clk 0:00:35]} 35. Nc2 {[%clk 0:00:33]}  Rxb2 {[%clk 0:00:34]} 36. Rxb2 {[%clk 0:00:33]}  Rc3 {[%clk 0:00:26]} 37. Nb4 {[%clk 0:00:29]}  Qg6+ {[%clk 0:00:22]} 38. Kh1 {[%clk 0:00:27]}  Nxd3 {[%clk 0:00:18]} 39. Nd5 {[%clk 0:00:25]}  Be4+ {[%clk 0:00:16]} 40. Bg2 {[%clk 0:00:24]}  Qxg2+ {[%clk 0:00:14]} 41. Qxg2 {[%clk 0:00:23]}  Rc1# {[%clk 0:00:15]} 0-1


[Site "https://www.chess.com"]